[Event "Betsys MČR v online bleskovém šachu 2021"]
[Site "Chess.com"]
[Date "2021.04.17"]
[Round "13"]
[White "phil3"]
[Black "tiger196223"]
[Result "1/2-1/2"]
[WhiteElo "2097"]
[BlackElo "1840"]
[TimeControl "180+1"]
[EndTime "11:08:56 PDT"]
[Termination "Remíza opakováním pozice"]

1. e4 {[%clk 0:03:00.9]} 1... e6 {[%clk 0:03:00.1]} 2. d4 {[%clk 0:03:01]} 2...
d5 {[%clk 0:03:00.6]} 3. Nc3 {[%clk 0:03:01.6]} 3... dxe4 {[%clk 0:03:00.4]} 4.
Nxe4 {[%clk 0:03:02.1]} 4... Nd7 {[%clk 0:03:00.9]} 5. Nf3 {[%clk 0:03:02.4]}
5... Be7 {[%clk 0:03:01.4]} 6. Bd3 {[%clk 0:03:01.8]} 6... Ngf6 {[%clk
0:03:01.9]} 7. O-O {[%clk 0:03:01.7]} 7... O-O {[%clk 0:03:01.5]} 8. Nxf6+
{[%clk 0:02:55.8]} 8... Nxf6 {[%clk 0:03:00.6]} 9. c3 {[%clk 0:02:55.3]} 9... b6
{[%clk 0:03:00]} 10. Bg5 {[%clk 0:02:53.5]} 10... Bb7 {[%clk 0:02:58.6]} 11. Re1
{[%clk 0:02:53.6]} 11... h6 {[%clk 0:02:56.7]} 12. Bh4 {[%clk 0:02:52.3]} 12...
c5 {[%clk 0:02:56.2]} 13. dxc5 {[%clk 0:02:50.2]} 13... bxc5 {[%clk 0:02:55.3]}
14. Ne5 {[%clk 0:02:47.5]} 14... Qd5 {[%clk 0:02:39.9]} 15. Bf1 {[%clk
0:02:47.3]} 15... Qxd1 {[%clk 0:02:26.9]} 16. Raxd1 {[%clk 0:02:46.7]} 16...
Rfd8 {[%clk 0:02:26.5]} 17. Bb5 {[%clk 0:02:34.4]} 17... Rxd1 {[%clk 0:02:21]}
18. Rxd1 {[%clk 0:02:34.3]} 18... Rd8 {[%clk 0:02:20.7]} 19. Rxd8+ {[%clk
0:02:34.1]} 19... Bxd8 {[%clk 0:02:20.5]} 20. Nc6 {[%clk 0:02:24.1]} 20... Bxc6
{[%clk 0:02:14.2]} 21. Bxc6 {[%clk 0:02:24.3]} 21... Bc7 {[%clk 0:02:04.4]} 22.
c4 {[%clk 0:02:16.9]} 22... g5 {[%clk 0:01:59.2]} 23. Bg3 {[%clk 0:02:15.5]}
23... Bxg3 {[%clk 0:01:58.1]} 24. hxg3 {[%clk 0:02:15.1]} 24... Kf8 {[%clk
0:01:53]} 25. Kf1 {[%clk 0:02:14.5]} 25... Ke7 {[%clk 0:01:53]} 26. Ke2 {[%clk
0:02:13.5]} 26... Kd6 {[%clk 0:01:52.9]} 27. Bb7 {[%clk 0:02:12.9]} 27... Nd7
{[%clk 0:01:46.5]} 28. f3 {[%clk 0:02:04.7]} 28... Nb6 {[%clk 0:01:25]} 29. b3
{[%clk 0:02:04.3]} 29... Nd7 {[%clk 0:01:21.2]} 30. Ke3 {[%clk 0:01:58.7]} 30...
f5 {[%clk 0:01:09]} 31. Ba8 {[%clk 0:01:47.5]} 31... Nb6 {[%clk 0:01:02.2]} 32.
Bb7 {[%clk 0:01:44.8]} 32... Nd7 {[%clk 0:01:01.8]} 33. Bc8 {[%clk 0:01:42.9]}
33... Nb6 {[%clk 0:00:53.3]} 34. Bb7 {[%clk 0:01:42.7]} 34... Nd7 {[%clk
0:00:45.9]} 1/2-1/2

[Event "Betsys MČR v online bleskovém šachu 2021"]
[Site "Chess.com"]
[Date "2021.04.17"]
[Round "13"]
[White "Tassa15"]
[Black "Michal5"]
[Result "0-1"]
[WhiteElo "872"]
[BlackElo "1193"]
[TimeControl "180+1"]
[EndTime "11:09:03 PDT"]
[Termination "Uživatel Michal5 zvítězil matem"]

1. d4 {[%clk 0:03:00.9]} 1... d5 {[%clk 0:02:58.8]} 2. Nf3 {[%clk 0:03:00.6]}
2... Nc6 {[%clk 0:02:58]} 3. Bf4 {[%clk 0:03:00]} 3... Bf5 {[%clk 0:02:57]} 4.
e3 {[%clk 0:02:58.4]} 4... Nf6 {[%clk 0:02:55.8]} 5. Bd3 {[%clk 0:02:57.9]} 5...
Bxd3 {[%clk 0:02:53.2]} 6. Qxd3 {[%clk 0:02:57.3]} 6... e6 {[%clk 0:02:53.5]} 7.
c3 {[%clk 0:02:56.7]} 7... Bd6 {[%clk 0:02:52.3]} 8. Bxd6 {[%clk 0:02:55.2]}
8... Qxd6 {[%clk 0:02:53.2]} 9. Nbd2 {[%clk 0:02:51.1]} 9... h6 {[%clk
0:02:52.9]} 10. h3 {[%clk 0:02:49.1]} 10... O-O {[%clk 0:02:49.4]} 11. O-O
{[%clk 0:02:48.7]} 11... e5 {[%clk 0:02:46.3]} 12. dxe5 {[%clk 0:02:47.2]} 12...
Nxe5 {[%clk 0:02:47.2]} 13. Nxe5 {[%clk 0:02:46.7]} 13... Qxe5 {[%clk
0:02:48.1]} 14. Qb5 {[%clk 0:02:40.4]} 14... b6 {[%clk 0:02:45.2]} 15. Qc6
{[%clk 0:02:37.9]} 15... Qe7 {[%clk 0:02:34.7]} 16. Nf3 {[%clk 0:02:37.1]} 16...
Rad8 {[%clk 0:02:32.4]} 17. Rad1 {[%clk 0:02:33.6]} 17... Rd6 {[%clk 0:02:31.8]}
18. Qa4 {[%clk 0:02:30.3]} 18... c5 {[%clk 0:02:31.7]} 19. Rfe1 {[%clk
0:02:20.9]} 19... Rfd8 {[%clk 0:02:29.4]} 20. Qb3 {[%clk 0:02:01.8]} 20... Qd7
{[%clk 0:02:26.9]} 21. a3 {[%clk 0:02:00.8]} 21... d4 {[%clk 0:02:26.8]} 22.
exd4 {[%clk 0:01:57.4]} 22... cxd4 {[%clk 0:02:27.7]} 23. cxd4 {[%clk
0:01:49.7]} 23... Nd5 {[%clk 0:02:07.6]} 24. Ne5 {[%clk 0:01:46.5]} 24... Qb7
{[%clk 0:01:59.9]} 25. Nc4 {[%clk 0:01:35.3]} 25... R6d7 {[%clk 0:01:31.8]} 26.
Ne5 {[%clk 0:01:34.7]} 26... Rd6 {[%clk 0:01:30.8]} 27. Nf3 {[%clk 0:01:29.2]}
27... Nf4 {[%clk 0:01:24.8]} 28. Re3 {[%clk 0:01:14.2]} 28... Rg6 {[%clk
0:01:18]} 29. Nh4 {[%clk 0:01:01.9]} 29... Rxg2+ {[%clk 0:01:11.8]} 30. Nxg2
{[%clk 0:00:59.4]} 30... Qxg2# {[%clk 0:01:11.1]} 0-1

[Event "Betsys MČR v online bleskovém šachu 2021"]
[Site "Chess.com"]
[Date "2021.04.17"]
[Round "13"]
[White "fm_magua"]
[Black "marecek1754"]
[Result "1-0"]
[WhiteElo "2498"]
[BlackElo "2193"]
[TimeControl "180+1"]
[EndTime "11:09:06 PDT"]
[Termination "Uživatel fm_magua zvítězil po vzdání soupeře"]

1. e4 {[%clk 0:03:00.9]} 1... e5 {[%clk 0:02:58.6]} 2. Nf3 {[%clk 0:03:00.5]}
2... Nc6 {[%clk 0:02:58.1]} 3. Bb5 {[%clk 0:03:01.1]} 3... a6 {[%clk 0:02:57.8]}
4. Ba4 {[%clk 0:03:01.3]} 4... Nf6 {[%clk 0:02:54]} 5. d4 {[%clk 0:03:01.6]}
5... Nxd4 {[%clk 0:02:17.9]} 6. Nxe5 {[%clk 0:02:58.5]} 6... Ne6 {[%clk
0:02:17.8]} 7. O-O {[%clk 0:02:57.5]} 7... Bc5 {[%clk 0:02:02.2]} 8. Nc3 {[%clk
0:02:54.8]} 8... O-O {[%clk 0:02:01.8]} 9. Bb3 {[%clk 0:02:52.3]} 9... d6 {[%clk
0:01:56.4]} 10. Nd3 {[%clk 0:02:52.5]} 10... Ba7 {[%clk 0:01:56.1]} 11. Kh1
{[%clk 0:02:48.4]} 11... Qe7 {[%clk 0:01:52]} 12. f4 {[%clk 0:02:47.4]} 12...
Nc5 {[%clk 0:01:51.2]} 13. e5 {[%clk 0:02:44.1]} 13... Ng4 {[%clk 0:01:43.1]}
14. f5 {[%clk 0:02:03.8]} 14... Nxd3 {[%clk 0:01:34.7]} 15. Qxd3 {[%clk
0:02:03.6]} 15... Qxe5 {[%clk 0:01:04.7]} 16. Bf4 {[%clk 0:02:01.2]} 16... Qxf5
{[%clk 0:00:58.6]} 17. Qg3 {[%clk 0:01:57.2]} 17... Qg6 {[%clk 0:00:54]} 18. Nd5
{[%clk 0:01:55]} 18... Kh8 {[%clk 0:00:25.6]} 19. Nxc7 {[%clk 0:01:54.8]} 19...
Rb8 {[%clk 0:00:26]} 20. Bxd6 {[%clk 0:01:55.1]} 20... Rg8 {[%clk 0:00:17.2]}
21. Bxf7 {[%clk 0:01:54.1]} 21... Nf2+ {[%clk 0:00:15.2]} 22. Rxf2 {[%clk
0:01:53.8]} 22... Qxg3 {[%clk 0:00:14.7]} 23. Bxg3 {[%clk 0:01:53.4]} 23... Bxf2
{[%clk 0:00:15.5]} 24. Bxf2 {[%clk 0:01:51.1]} 24... Rf8 {[%clk 0:00:15.6]} 25.
Ba7 {[%clk 0:01:50.4]} 25... Rxf7 {[%clk 0:00:14.3]} 26. Bxb8 {[%clk 0:01:50.8]}
1-0

[Event "Betsys MČR v online bleskovém šachu 2021"]
[Site "Chess.com"]
[Date "2021.04.17"]
[Round "13"]
[White "CZpeeeter"]
[Black "domecek"]
[Result "1-0"]
[WhiteElo "1717"]
[BlackElo "1944"]
[TimeControl "180+1"]
[EndTime "11:09:15 PDT"]
[Termination "Uživatel CZpeeeter zvítězil na čas"]

1. d4 {[%clk 0:03:00.9]} 1... d5 {[%clk 0:02:59.1]} 2. Nf3 {[%clk 0:03:00.9]}
2... Nf6 {[%clk 0:02:57.8]} 3. e3 {[%clk 0:03:00.9]} 3... g6 {[%clk 0:02:57.2]}
4. c4 {[%clk 0:02:59.8]} 4... e6 {[%clk 0:02:55.7]} 5. Nc3 {[%clk 0:02:59.9]}
5... Bg7 {[%clk 0:02:55.3]} 6. Be2 {[%clk 0:02:59.5]} 6... O-O {[%clk
0:02:55.5]} 7. O-O {[%clk 0:02:59.6]} 7... b6 {[%clk 0:02:55.8]} 8. b4 {[%clk
0:02:56.7]} 8... dxc4 {[%clk 0:02:54.5]} 9. Bxc4 {[%clk 0:02:56.2]} 9... c5
{[%clk 0:02:54.1]} 10. bxc5 {[%clk 0:02:49.7]} 10... bxc5 {[%clk 0:02:53.6]} 11.
Ba3 {[%clk 0:02:49.5]} 11... Qa5 {[%clk 0:02:42.9]} 12. Qb3 {[%clk 0:02:38.2]}
12... Na6 {[%clk 0:02:21]} 13. Rfc1 {[%clk 0:02:15.8]} 13... Rb8 {[%clk
0:02:11.1]} 14. Qa4 {[%clk 0:02:14.9]} 14... Qxa4 {[%clk 0:01:58.2]} 15. Nxa4
{[%clk 0:02:14.9]} 15... Bb7 {[%clk 0:01:48.3]} 16. Bxa6 {[%clk 0:02:10.7]}
16... Bxa6 {[%clk 0:01:47.1]} 17. Nxc5 {[%clk 0:02:06.8]} 17... Be2 {[%clk
0:01:42.1]} 18. Ne5 {[%clk 0:02:02.5]} 18... Rfc8 {[%clk 0:01:28.8]} 19. Ncd7
{[%clk 0:01:39.2]} 19... Rb7 {[%clk 0:01:23.5]} 20. Rxc8+ {[%clk 0:01:37.8]} 1-0

[Event "Betsys MČR v online bleskovém šachu 2021"]
[Site "Chess.com"]
[Date "2021.04.17"]
[Round "13"]
[White "vozmenmarcel"]
[Black "androidddd"]
[Result "1-0"]
[WhiteElo "1871"]
[BlackElo "1473"]
[TimeControl "180+1"]
[EndTime "11:09:16 PDT"]
[Termination "Uživatel vozmenmarcel zvítězil po vzdání soupeře"]

1. e4 {[%clk 0:03:00.9]} 1... c6 {[%clk 0:02:59.4]} 2. d4 {[%clk 0:03:00.9]}
2... d5 {[%clk 0:02:59.4]} 3. e5 {[%clk 0:03:00.6]} 3... c5 {[%clk 0:02:50.4]}
4. c3 {[%clk 0:02:59.6]} 4... Nc6 {[%clk 0:02:42.5]} 5. f4 {[%clk 0:02:58.1]}
5... cxd4 {[%clk 0:02:35.9]} 6. cxd4 {[%clk 0:02:57.2]} 6... Qb6 {[%clk
0:02:35.9]} 7. Nf3 {[%clk 0:02:51.5]} 7... Bg4 {[%clk 0:02:34.4]} 8. Be3 {[%clk
0:02:46.4]} 8... Qxb2 {[%clk 0:02:30]} 9. Nbd2 {[%clk 0:02:45.7]} 9... Rc8
{[%clk 0:02:16.6]} 10. Rb1 {[%clk 0:02:41.8]} 10... Qxa2 {[%clk 0:02:12.8]} 11.
Rxb7 {[%clk 0:02:40.5]} 11... e6 {[%clk 0:02:08.4]} 12. Bb5 {[%clk 0:02:35.3]}
12... Ne7 {[%clk 0:02:02.1]} 13. O-O {[%clk 0:02:29.4]} 13... a6 {[%clk
0:01:48.3]} 14. Bxc6+ {[%clk 0:02:14.4]} 14... Nxc6 {[%clk 0:01:46.2]} 15. Qb1
{[%clk 0:02:02.6]} 15... Qxb1 {[%clk 0:01:39]} 16. Rfxb1 {[%clk 0:02:00.6]}
16... Bb4 {[%clk 0:01:36.2]} 17. R1xb4 {[%clk 0:01:57.8]} 17... Nxb4 {[%clk
0:01:34]} 18. Rxb4 {[%clk 0:01:57.8]} 18... O-O {[%clk 0:01:33.7]} 19. Kf2
{[%clk 0:01:56.4]} 19... a5 {[%clk 0:01:33.2]} 20. Ra4 {[%clk 0:01:55.5]} 20...
h5 {[%clk 0:01:30.8]} 21. h3 {[%clk 0:01:52.7]} 21... Bf5 {[%clk 0:01:30.4]} 22.
Rxa5 {[%clk 0:01:38.7]} 22... Rc2 {[%clk 0:01:25.6]} 23. Ra7 {[%clk 0:01:37.5]}
23... Be4 {[%clk 0:01:22.6]} 24. g4 {[%clk 0:01:32.4]} 24... Rfc8 {[%clk
0:01:19.7]} 25. Ng5 {[%clk 0:01:25.7]} 25... R8c7 {[%clk 0:01:12.9]} 26. Rxc7
{[%clk 0:01:22.2]} 26... Rxc7 {[%clk 0:01:09]} 27. Ngxe4 {[%clk 0:01:21.3]}
27... dxe4 {[%clk 0:01:08.2]} 28. Nxe4 {[%clk 0:01:20.9]} 28... hxg4 {[%clk
0:01:06.5]} 29. hxg4 {[%clk 0:01:20.2]} 29... Kf8 {[%clk 0:01:06.7]} 30. Kf3
{[%clk 0:01:20]} 30... Rc2 {[%clk 0:01:03.7]} 31. f5 {[%clk 0:01:18.7]} 31...
exf5 {[%clk 0:01:02.7]} 32. gxf5 {[%clk 0:01:18.8]} 32... Ke7 {[%clk 0:01:03]}
33. Bg5+ {[%clk 0:01:17.1]} 33... f6 {[%clk 0:01:02.2]} 34. exf6+ {[%clk
0:01:16.2]} 34... gxf6 {[%clk 0:01:02.6]} 35. Bxf6+ {[%clk 0:01:16.3]} 35... Kf7
{[%clk 0:01:02.7]} 36. Be5 {[%clk 0:01:15.4]} 36... Rc4 {[%clk 0:01:01.7]} 37.
Nd6+ {[%clk 0:01:14.1]} 1-0

[Event "Betsys MČR v online bleskovém šachu 2021"]
[Site "Chess.com"]
[Date "2021.04.17"]
[Round "13"]
[White "Dvacetsekund"]
[Black "avsokol"]
[Result "1-0"]
[WhiteElo "2215"]
[BlackElo "2341"]
[TimeControl "180+1"]
[EndTime "11:09:26 PDT"]
[Termination "Uživatel Dvacetsekund zvítězil matem"]

1. e4 {[%clk 0:03:00.9]} 1... c5 {[%clk 0:02:57.3]} 2. Nf3 {[%clk 0:03:00.6]}
2... d6 {[%clk 0:02:57.6]} 3. d4 {[%clk 0:03:00.7]} 3... cxd4 {[%clk 0:02:58.5]}
4. Nxd4 {[%clk 0:03:01.5]} 4... Nf6 {[%clk 0:02:58.4]} 5. Nc3 {[%clk 0:03:01.7]}
5... g6 {[%clk 0:02:59.2]} 6. Be3 {[%clk 0:03:01.5]} 6... Bg7 {[%clk 0:02:59.8]}
7. f3 {[%clk 0:03:02.1]} 7... O-O {[%clk 0:03:00.3]} 8. Qd2 {[%clk 0:03:02.7]}
8... Nc6 {[%clk 0:03:00.8]} 9. Bc4 {[%clk 0:03:03]} 9... Bd7 {[%clk 0:03:01.1]}
10. h4 {[%clk 0:03:02.2]} 10... Rc8 {[%clk 0:03:01.5]} 11. Bb3 {[%clk
0:03:01.7]} 11... h5 {[%clk 0:03:02]} 12. O-O-O {[%clk 0:03:00.3]} 12... Ne5
{[%clk 0:03:01.8]} 13. Bg5 {[%clk 0:02:58.7]} 13... Rc5 {[%clk 0:03:01.9]} 14.
Kb1 {[%clk 0:02:57.5]} 14... b5 {[%clk 0:03:00.2]} 15. g4 {[%clk 0:02:57.4]}
15... hxg4 {[%clk 0:02:59.6]} 16. h5 {[%clk 0:02:57.7]} 16... Nxh5 {[%clk
0:02:59.5]} 17. Nd5 {[%clk 0:02:57.3]} 17... Re8 {[%clk 0:02:59.9]} 18. Rxh5
{[%clk 0:02:51.7]} 18... gxh5 {[%clk 0:03:00]} 19. Qh2 {[%clk 0:02:49.7]} 19...
Rxd5 {[%clk 0:02:59.7]} 20. exd5 {[%clk 0:02:45.4]} 20... gxf3 {[%clk
0:02:49.8]} 21. Qxh5 {[%clk 0:02:39.9]} 21... Bg4 {[%clk 0:02:47.3]} 22. Qh4
{[%clk 0:02:35.5]} 22... Qb6 {[%clk 0:02:30.3]} 23. Nc6 {[%clk 0:02:02]} 23...
f2 {[%clk 0:02:01.4]} 24. Rh1 {[%clk 0:01:49]} 24... f6 {[%clk 0:01:08.9]} 25.
Nxe5 {[%clk 0:01:38.4]} 25... dxe5 {[%clk 0:00:46.7]} 26. Qxg4 {[%clk
0:01:35.8]} 26... fxg5 {[%clk 0:00:34.4]} 27. d6+ {[%clk 0:01:34.3]} 27... Kf8
{[%clk 0:00:34]} 28. Qf5+ {[%clk 0:01:30.3]} 28... Bf6 {[%clk 0:00:29.1]} 29.
Rh8+ {[%clk 0:01:27.4]} 29... Kg7 {[%clk 0:00:26.9]} 30. Qh7# {[%clk 0:01:26.9]}
1-0

[Event "Betsys MČR v online bleskovém šachu 2021"]
[Site "Chess.com"]
[Date "2021.04.17"]
[Round "13"]
[White "HCMotorCB"]
[Black "TerezaRodshtein"]
[Result "1-0"]
[WhiteElo "2381"]
[BlackElo "2184"]
[TimeControl "180+1"]
[EndTime "11:09:29 PDT"]
[Termination "Uživatel HCMotorCB zvítězil po vzdání soupeře"]

1. e4 {[%clk 0:03:00.9]} 1... c5 {[%clk 0:02:57.9]} 2. Nf3 {[%clk 0:03:00.6]}
2... d6 {[%clk 0:02:57.2]} 3. d4 {[%clk 0:03:00.6]} 3... cxd4 {[%clk 0:02:56.9]}
4. Nxd4 {[%clk 0:03:01.5]} 4... Nf6 {[%clk 0:02:56.2]} 5. Nc3 {[%clk 0:03:01.3]}
5... g6 {[%clk 0:02:56.4]} 6. h3 {[%clk 0:02:59.2]} 6... Bg7 {[%clk 0:02:56]} 7.
g4 {[%clk 0:02:59.4]} 7... Nc6 {[%clk 0:02:55.8]} 8. Nde2 {[%clk 0:02:59.6]}
8... Qa5 {[%clk 0:02:44.4]} 9. Bg2 {[%clk 0:02:58.1]} 9... b5 {[%clk 0:02:34.7]}
10. O-O {[%clk 0:02:55.6]} 10... Bb7 {[%clk 0:02:32.9]} 11. a4 {[%clk
0:02:50.4]} 11... b4 {[%clk 0:02:30.9]} 12. Nd5 {[%clk 0:02:50.4]} 12... O-O
{[%clk 0:02:06.8]} 13. Bg5 {[%clk 0:02:48.6]} 13... Rad8 {[%clk 0:01:49.4]} 14.
Nxf6+ {[%clk 0:02:42.1]} 14... Bxf6 {[%clk 0:01:45.9]} 15. Bxf6 {[%clk
0:02:41.7]} 15... exf6 {[%clk 0:01:46.8]} 16. Nf4 {[%clk 0:02:29.3]} 16... Ne5
{[%clk 0:01:44.4]} 17. b3 {[%clk 0:02:24.2]} 17... Qc5 {[%clk 0:01:33.4]} 18.
Qd2 {[%clk 0:02:21.7]} 18... f5 {[%clk 0:01:26.3]} 19. gxf5 {[%clk 0:02:07.2]}
19... gxf5 {[%clk 0:01:25.5]} 20. Nd5 {[%clk 0:01:59.9]} 20... Kh8 {[%clk
0:01:06.7]} 21. Qh6 {[%clk 0:01:37.4]} 21... Bxd5 {[%clk 0:00:33.4]} 22. exd5
{[%clk 0:01:36]} 22... Rg8 {[%clk 0:00:27.4]} 23. Qf6+ {[%clk 0:01:34.2]} 23...
Rg7 {[%clk 0:00:22.6]} 24. Qxd8+ {[%clk 0:01:34.1]} 24... Rg8 {[%clk 0:00:23]}
25. Qf6+ {[%clk 0:01:34]} 25... Rg7 {[%clk 0:00:22.6]} 26. Qxf5 {[%clk
0:01:30.5]} 26... Qxd5 {[%clk 0:00:22.2]} 27. Qc8+ {[%clk 0:01:25.6]} 27... Rg8
{[%clk 0:00:20.9]} 28. Qxg8+ {[%clk 0:01:25.6]} 28... Kxg8 {[%clk 0:00:21.8]}
29. Bxd5 {[%clk 0:01:25.6]} 1-0

[Event "Betsys MČR v online bleskovém šachu 2021"]
[Site "Chess.com"]
[Date "2021.04.17"]
[Round "13"]
[White "Bartusman"]
[Black "dnovotny"]
[Result "1-0"]
[WhiteElo "1966"]
[BlackElo "1730"]
[TimeControl "180+1"]
[EndTime "11:09:29 PDT"]
[Termination "Uživatel Bartusman zvítězil na čas"]

1. e4 {[%clk 0:03:00.9]} 1... e5 {[%clk 0:02:59.6]} 2. Nf3 {[%clk 0:03:01.1]}
2... Nc6 {[%clk 0:03:00]} 3. Bc4 {[%clk 0:03:01.7]} 3... Nf6 {[%clk 0:02:58.2]}
4. d4 {[%clk 0:03:01.1]} 4... exd4 {[%clk 0:02:57]} 5. O-O {[%clk 0:03:01.6]}
5... Nxe4 {[%clk 0:02:54.9]} 6. Nc3 {[%clk 0:03:02]} 6... dxc3 {[%clk
0:02:33.3]} 7. Bxf7+ {[%clk 0:03:01.4]} 7... Kxf7 {[%clk 0:02:19.1]} 8. Qd5+
{[%clk 0:03:00.8]} 8... Ke8 {[%clk 0:01:57.3]} 9. Re1 {[%clk 0:02:59.8]} 9...
Ne7 {[%clk 0:01:19.5]} 10. Rxe4 {[%clk 0:02:58.6]} 10... d6 {[%clk 0:00:49.8]}
11. Bg5 {[%clk 0:02:56.4]} 11... c6 {[%clk 0:00:40]} 12. Qd4 {[%clk 0:02:27.1]}
12... Bf5 {[%clk 0:00:34.4]} 13. Re2 {[%clk 0:01:59.9]} 13... Kd7 {[%clk
0:00:21.6]} 14. Ne5+ {[%clk 0:01:43.6]} 14... Kc7 {[%clk 0:00:20.8]} 15. Nf7
{[%clk 0:01:43.7]} 15... Qd7 {[%clk 0:00:19.5]} 16. Nxh8 {[%clk 0:01:43.4]}
16... Ng6 {[%clk 0:00:09.8]} 17. Nxg6 {[%clk 0:01:40.5]} 17... Bxg6 {[%clk
0:00:06.6]} 18. Qxc3 {[%clk 0:01:39.4]} 18... Re8 {[%clk 0:00:05.3]} 19. Rae1
{[%clk 0:01:36.8]} 19... Rxe2 {[%clk 0:00:03.3]} 20. Rxe2 {[%clk 0:01:37]} 20...
Bf5 {[%clk 0:00:01.1]} 21. Bf4 {[%clk 0:01:33.7]} 21... h6 {[%clk 0:00:01.3]}
22. Rd2 {[%clk 0:01:29.8]} 1-0

[Event "Betsys MČR v online bleskovém šachu 2021"]
[Site "Chess.com"]
[Date "2021.04.17"]
[Round "13"]
[White "Tah_na_g12"]
[Black "WhiteLittleHorse"]
[Result "0-1"]
[WhiteElo "1163"]
[BlackElo "982"]
[TimeControl "180+1"]
[EndTime "11:09:31 PDT"]
[Termination "Uživatel WhiteLittleHorse zvítězil matem"]

1. e4 {[%clk 0:03:00.9]} 1... e5 {[%clk 0:03:00.3]} 2. Nf3 {[%clk 0:03:00.5]}
2... Nc6 {[%clk 0:03:00.7]} 3. Bc4 {[%clk 0:03:00]} 3... Bc5 {[%clk 0:02:59.1]}
4. c3 {[%clk 0:02:57.5]} 4... Nf6 {[%clk 0:02:54.2]} 5. d4 {[%clk 0:02:57]} 5...
exd4 {[%clk 0:02:53.3]} 6. cxd4 {[%clk 0:02:57.9]} 6... Bb6 {[%clk 0:02:51.6]}
7. e5 {[%clk 0:02:56]} 7... Ng8 {[%clk 0:02:38.8]} 8. Bg5 {[%clk 0:02:54.1]}
8... f6 {[%clk 0:02:37.3]} 9. exf6 {[%clk 0:02:53.8]} 9... gxf6 {[%clk
0:02:35.8]} 10. Qe2+ {[%clk 0:02:47.2]} 10... Nge7 {[%clk 0:02:33]} 11. Bxf6
{[%clk 0:02:45.2]} 11... Rf8 {[%clk 0:02:29.2]} 12. Bxe7 {[%clk 0:02:44.5]}
12... Qxe7 {[%clk 0:02:26.8]} 13. Qxe7+ {[%clk 0:02:44.4]} 13... Nxe7 {[%clk
0:02:26.1]} 14. O-O {[%clk 0:02:42.3]} 14... d5 {[%clk 0:02:25.4]} 15. Bb5+
{[%clk 0:02:39.5]} 15... c6 {[%clk 0:02:23.8]} 16. Bd3 {[%clk 0:02:39]} 16...
Bg4 {[%clk 0:02:23.5]} 17. Re1 {[%clk 0:02:36.5]} 17... Bxf3 {[%clk 0:02:21.2]}
18. gxf3 {[%clk 0:02:37.4]} 18... Rxf3 {[%clk 0:02:20.1]} 19. Bxh7 {[%clk
0:02:33.1]} 19... Bxd4 {[%clk 0:02:18.8]} 20. Re2 {[%clk 0:02:29.1]} 20... Rf7
{[%clk 0:02:05.4]} 21. Bd3 {[%clk 0:02:25.3]} 21... Kd7 {[%clk 0:01:56.6]} 22.
Nc3 {[%clk 0:02:22.5]} 22... Rg8+ {[%clk 0:01:55.5]} 23. Kh1 {[%clk 0:02:21.4]}
23... Bxf2 {[%clk 0:01:48.6]} 24. Rf1 {[%clk 0:02:07.3]} 24... Rgf8 {[%clk
0:01:29.6]} 25. Kg2 {[%clk 0:02:06.3]} 25... Rg8+ {[%clk 0:01:25.5]} 26. Kh1
{[%clk 0:02:04.5]} 26... Rgf8 {[%clk 0:01:25.4]} 27. Nd1 {[%clk 0:02:00.6]}
27... Bb6 {[%clk 0:01:20.9]} 28. Rfe1 {[%clk 0:01:49]} 28... Rf1+ {[%clk
0:01:18.2]} 29. Kg2 {[%clk 0:01:45.1]} 29... Rxe1 {[%clk 0:01:15]} 30. Rxe1
{[%clk 0:01:44.1]} 30... Rg8+ {[%clk 0:01:15.7]} 31. Kf3 {[%clk 0:01:43]} 31...
Rf8+ {[%clk 0:01:12.4]} 32. Kg4 {[%clk 0:01:41.9]} 32... Rg8+ {[%clk 0:01:08.9]}
33. Kf3 {[%clk 0:01:36.5]} 33... Rf8+ {[%clk 0:01:04.9]} 34. Kg2 {[%clk
0:01:35.5]} 34... Rg8+ {[%clk 0:01:04.8]} 35. Kh1 {[%clk 0:01:34]} 35... Nc8
{[%clk 0:01:02.8]} 36. Bf5+ {[%clk 0:01:29.9]} 36... Kc7 {[%clk 0:01:01.1]} 37.
Re7+ {[%clk 0:01:26]} 37... Kb8 {[%clk 0:00:58.5]} 38. Be6 {[%clk 0:01:07.6]}
38... Rg1# {[%clk 0:00:57.8]} 0-1

[Event "Betsys MČR v online bleskovém šachu 2021"]
[Site "Chess.com"]
[Date "2021.04.17"]
[Round "13"]
[White "Maty122"]
[Black "svobodan"]
[Result "0-1"]
[WhiteElo "1131"]
[BlackElo "1640"]
[TimeControl "180+1"]
[EndTime "11:09:32 PDT"]
[Termination "Uživatel svobodan zvítězil matem"]

1. e4 {[%clk 0:03:00.9]} 1... c5 {[%clk 0:02:59.5]} 2. Nf3 {[%clk 0:03:00.2]}
2... d6 {[%clk 0:03:00]} 3. c4 {[%clk 0:02:59.9]} 3... Nf6 {[%clk 0:02:58.9]} 4.
Nc3 {[%clk 0:02:57.3]} 4... Nc6 {[%clk 0:02:59]} 5. d4 {[%clk 0:02:50.8]} 5...
cxd4 {[%clk 0:02:58.2]} 6. Nxd4 {[%clk 0:02:51]} 6... g6 {[%clk 0:02:58.7]} 7.
Bg5 {[%clk 0:02:47.6]} 7... Bg7 {[%clk 0:02:58.6]} 8. Qf3 {[%clk 0:02:37.9]}
8... Nxd4 {[%clk 0:02:56.6]} 9. Qd3 {[%clk 0:02:33.5]} 9... Nc6 {[%clk
0:02:53.5]} 10. Bxf6 {[%clk 0:02:28.2]} 10... Bxf6 {[%clk 0:02:52.7]} 11. Qd5
{[%clk 0:02:27]} 11... Be6 {[%clk 0:02:51.4]} 12. Qb5 {[%clk 0:02:25.1]} 12...
Qc7 {[%clk 0:02:49.5]} 13. Be2 {[%clk 0:02:17.7]} 13... a6 {[%clk 0:02:47.6]}
14. Qa4 {[%clk 0:02:15.4]} 14... O-O {[%clk 0:02:45]} 15. O-O {[%clk 0:02:15.2]}
15... Ne5 {[%clk 0:02:42.1]} 16. Nd5 {[%clk 0:02:08.4]} 16... Bxd5 {[%clk
0:02:39.7]} 17. cxd5 {[%clk 0:02:08.6]} 17... Qd7 {[%clk 0:02:39.1]} 18. Qb4
{[%clk 0:02:02.9]} 18... a5 {[%clk 0:02:27.8]} 19. Qb6 {[%clk 0:01:55.5]} 19...
Rfc8 {[%clk 0:02:00.6]} 20. f4 {[%clk 0:01:41.3]} 20... Nc4 {[%clk 0:01:56.7]}
21. Qb3 {[%clk 0:01:31.5]} 21... Nd2 {[%clk 0:01:49.6]} 22. Qe3 {[%clk
0:01:21.4]} 22... Nc4 {[%clk 0:01:43.9]} 23. Qf3 {[%clk 0:01:09.1]} 23... Nd2
{[%clk 0:01:42.2]} 24. Qd3 {[%clk 0:00:59.8]} 24... Nxf1 {[%clk 0:01:41.8]} 25.
Rxf1 {[%clk 0:00:59.7]} 25... Qc7 {[%clk 0:01:38.2]} 26. Bf3 {[%clk 0:00:52.4]}
26... Qc2 {[%clk 0:01:36]} 27. Qe3 {[%clk 0:00:47.5]} 27... Qxb2 {[%clk
0:01:31.6]} 28. e5 {[%clk 0:00:43.2]} 28... dxe5 {[%clk 0:01:30.9]} 29. fxe5
{[%clk 0:00:43.4]} 29... Bxe5 {[%clk 0:01:31.3]} 30. Qh6 {[%clk 0:00:40.8]}
30... Bd4+ {[%clk 0:01:27.9]} 31. Kh1 {[%clk 0:00:39.7]} 31... Qb5 {[%clk
0:01:18.9]} 32. Be4 {[%clk 0:00:38.6]} 32... Qxf1# {[%clk 0:01:18.2]} 0-1